bitfinex-derivatives/quotes_SOLF0:USTF0_20250311
["timestamp","ask_amount","ask_price","bid_price","bid_amount"]
[1741703279553,64.5728,120.51,120.4,27.28322173]
[1741703279752,0.05911953,120.45,120.41,60.24]
[1741703279947,0.05911953,120.45,120.44,8.3052]
[1741703280152,0.05911953,120.45,120.38,4.0084]
[1741703280952,27.28322173,120.44,120.38,4.0084]
[1741703281156,27.28322173,120.42,120.36,4.3638]
[1741703281357,0.05761551,120.42,120.36,4.3638]
[1741703281556,0.05761551,120.42,120.36,12.6741]
[1741703281759,0.05761551,120.42,120.37,4.0614]
[1741703282059,27.34083724,120.42,120.31,4.3919]
[1741703282258,27.34083724,120.42,120.32,8.2909]
[1741703282456,60.22,120.41,120.32,8.2909]
[1741703282654,0.05891909,120.38,120.32,8.2909]
[1741703282855,8.3114,120.35,120.32,8.2909]
[1741703283256,0.05386113,120.35,120.32,8.2909]
[1741703284460,0.05386113,120.35,120.26,191.0]
[1741703284667,27.28322173,120.38,120.3,4.0716]
[1741703284866,8.3148,120.31,120.27,8.3028]
[1741703285169,87.50322173,120.32,120.21,8.3208]
[1741703285374,0.06046223,120.3,120.22,4.0151]
[1741703285557,27.34368396,120.3,120.22,4.0151]
[1741703285867,0.05358204,120.27,120.22,31.29832173]
[1741703286164,238.62935526,120.36,120.24,27.28322173]
[1741703286355,91.81942173,120.36,120.25,60.24]
[1741703286556,27.28322173,120.34,120.23,27.28322173]
[1741703286757,27.28322173,120.34,120.24,8.3185]
[1741703286965,91.81942173,120.36,120.23,87.52322173]
[1741703287162,27.28322173,120.34,120.22,4.0151]
[1741703287355,27.28322173,120.3,120.28,0.05358204]
[1741703287561,60.27597784,120.31,120.22,4.0151]
[1741703287764,27.28322173,120.29,120.22,4.0151]
[1741703288068,27.28322173,120.27,120.16,361.50322173]
[1741703288364,12.842,120.3,120.18,27.28322173]
[1741703288564,8.3153,120.3,120.22,27.28322173]
[1741703288766,0.06134148,120.25,120.22,27.28322173]
[1741703288959,0.06134148,120.25,120.2,60.24]
[1741703289162,0.06134148,120.25,120.21,27.28322173]
[1741703289369,73.0027,120.35,120.23,27.28322173]
[1741703289571,73.0027,120.35,120.24,8.7514]
[1741703289866,27.28322173,120.3,120.2,8.3216]
[1741703290061,60.24,120.29,120.19,8.7514]
[1741703290366,27.28322173,120.29,120.19,8.7514]
[1741703290561,27.28322173,120.27,120.19,8.7514]
[1741703290761,0.06150155,120.25,120.23,0.05546559]
[1741703291964,27.28322173,120.24,120.23,0.05546559]
[1741703292172,27.28322173,120.24,120.13,4.2156]
[1741703292367,27.28322173,120.22,120.1,27.28322173]
[1741703292558,27.28322173,120.22,120.13,8.3261]
[1741703292763,27.28322173,120.22,120.1,35.89052173]
[1741703293070,334.46,120.25,120.11,1.51793609]
[1741703293269,60.26,120.25,120.13,27.28322173]
[1741703293457,40.19742173,120.28,120.15,27.28322173]
[1741703293665,40.19742173,120.28,120.18,0.05790354]
[1741703293868,27.28322173,120.24,120.18,0.05790354]
[1741703294059,27.28322173,120.2,120.1,4.2156]
[1741703294260,8.3257,120.15,120.11,4.0612]
[1741703294463,27.28322173,120.18,120.11,4.0612]
[1741703294867,27.28322173,120.18,120.12,0.05798579]
[1741703294868,0.05863971,120.14,120.12,0.05798579]
[1741703295263,27.34186144,120.14,120.05,8.1156]
[1741703295663,31.30712173,120.14,120.05,8.1156]
[1741703295868,27.28322173,120.18,120.07,27.28322173]
[1741703296068,4.2985,120.19,120.07,27.28322173]
[1741703296265,4.2985,120.19,120.09,35.61212173]
[1741703296465,0.0589916,120.14,120.09,27.28322173]
[1741703296671,0.0589916,120.14,120.07,27.28322173]
[1741703296868,0.0589916,120.14,120.08,8.3298]
[1741703297061,0.0589916,120.14,120.07,27.28322173]
[1741703297574,64.2639,120.22,120.12,27.28322173]
[1741703297575,8.4212,120.22,120.12,27.28322173]
[1741703297770,8.4212,120.22,120.13,64.3738]
[1741703297970,27.28322173,120.21,120.13,12.2432]
[1741703298471,8.4212,120.22,120.13,12.2432]
[1741703298872,0.05430013,120.18,120.16,0.05759649]
[1741703300570,31.33322173,120.27,120.16,0.05759649]
[1741703300769,35.54402173,120.27,120.17,60.26]
[1741703301175,35.54402173,120.27,120.13,12.2432]
[1741703301176,27.28322173,120.23,120.13,72.5032]
[1741703301471,27.28322173,120.19,120.07,28.94891674]
[1741703301674,27.28322173,120.17,120.07,1.66569501]
[1741703301972,8.327,120.13,120.12,0.0636334]
[1741703302178,0.05869585,120.14,120.07,1.66569501]
[1741703302582,27.28322173,120.15,120.04,60.26]
[1741703303072,27.28322173,120.17,120.05,27.28322173]
[1741703303277,73.0181,120.18,120.07,27.28322173]
[1741703303468,4.2108,120.18,120.09,27.28322173]
[1741703303672,8.7427,120.22,120.13,27.28322173]
[1741703303872,8.7427,120.22,120.17,8.3233]
[1741703304068,27.28322173,120.27,120.15,87.56322173]
[1741703304273,31.59642173,120.27,120.16,4.419]
[1741703304477,31.59642173,120.27,120.16,12.743]
[1741703304678,31.59642173,120.27,120.16,4.419]
[1741703304880,27.28322173,120.23,120.16,4.419]
[1741703305072,27.33693511,120.23,120.2,0.06033658]
[1741703305474,8.3236,120.18,120.13,60.26]
[1741703305780,87.59693511,120.23,120.12,31.59]
[1741703305781,27.28322173,120.21,120.12,31.59]
[1741703305981,4.0657,120.22,120.12,31.59]
[1741703306574,31.34892173,120.22,120.12,31.59]
[1741703306777,0.06321425,120.18,120.16,0.0543126]
[1741703308883,0.06321425,120.18,120.16,8.3784126]
[1741703309082,0.06321425,120.18,120.16,0.0543126]
[1741703309284,0.06321425,120.18,120.17,8.3238]
[1741703309675,31.31832173,120.26,120.16,60.2943126]
[1741703309985,4.2613,120.28,120.19,27.28322173]
[1741703310283,27.28322173,120.32,120.21,27.28322173]
[1741703310489,4.2613,120.33,120.24,27.28322173]
[1741703310784,4.0041,120.34,120.24,27.28322173]
[1741703310986,4.0041,120.34,120.3,8.3144]
[1741703311183,0.05288886,120.3,120.27,0.05769784]
[1741703311383,8.313,120.33,120.25,8.4253]
[1741703311578,0.05266862,120.3,120.27,0.06109844]
[1741703311777,60.24,120.38,120.27,0.06109844]
[1741703311778,32.06462083,120.42,120.28,362.08322173]
[1741703311977,8.3087,120.39,120.32,27.28322173]
[1741703312180,27.28322173,120.39,120.26,27.28322173]
[1741703312389,27.28322173,120.33,120.25,8.4253]
[1741703312579,87.52322173,120.35,120.25,8.4253]
[1741703312782,4.2437,120.34,120.25,8.4253]
[1741703312987,0.05443367,120.31,120.29,0.06306291]
[1741703313380,27.3376554,120.31,120.19,334.78]
[1741703313586,27.3376554,120.31,120.2,4.2957]
[1741703313787,27.28322173,120.31,120.2,4.2957]
[1741703314188,27.28322173,120.29,120.2,4.2957]
[1741703314694,0.06043687,120.26,120.23,0.05516628]
[1741703321000,8.319,120.24,120.23,0.05516628]
[1741703321194,0.06043687,120.26,120.23,0.05516628]
[1741703321998,8.3183,120.25,120.23,0.05516628]
[1741703322198,0.06043687,120.26,120.23,0.05516628]
[1741703323101,0.06043687,120.26,120.24,8.3188]
[1741703323298,0.06043687,120.26,120.23,0.05516628]
[1741703323797,8.37823687,120.26,120.23,0.05516628]
[1741703324001,0.06043687,120.26,120.23,0.05516628]
[1741703324797,0.06043687,120.26,120.23,8.37446628]
[1741703324998,0.06043687,120.26,120.23,0.05516628]
[1741703325193,0.06043687,120.26,120.23,8.37466628]
[1741703325400,0.06043687,120.26,120.23,0.05516628]
[1741703327390,0.06043687,120.26,120.25,8.3183]
[1741703328197,3.687e-05,120.26,120.25,8.3183]
[1741703328403,3.687e-05,120.26,120.24,64.4144]
[1741703328591,3.687e-05,120.26,120.23,0.05516628]
[1741703329808,3.687e-05,120.26,120.23,0.01119725]
[1741703330100,27.28322173,120.25,120.15,60.12]
[1741703330305,4.2082,120.24,120.15,60.12]
[1741703330694,4.4319,120.27,120.16,27.28322173]
[1741703330901,4.4319,120.27,120.15,60.12]
[1741703331103,0.06298434,120.23,120.2,0.05312211]
[1741703331699,47.71227,120.33,120.22,27.28322173]
[1741703331909,47.71227,120.33,120.24,27.28322173]
[1741703332200,47.71227,120.33,120.25,60.12]
[1741703332409,47.71227,120.33,120.26,27.28322173]
[1741703332703,74.99549173,120.33,120.14,274.46]
[1741703332906,0.05470018,120.31,120.28,0.06372785]
[1741703333303,27.28322173,120.3,120.22,8.3199]
[1741703333607,35.76132173,120.32,120.22,60.1]
[1741703333801,0.05351516,120.27,120.25,0.05591659]
[1741703334002,35.76132173,120.32,120.25,0.05591659]
[1741703334200,27.28322173,120.29,120.25,0.05591659]
[1741703334399,8.3176,120.26,120.25,0.05591659]
[1741703335400,17.27885193,120.27,120.16,68.6123]
[1741703335601,17.21830011,120.25,120.16,8.5123]
[1741703335805,4.3379,120.24,120.16,8.5123]
[1741703336198,4.3379,120.24,120.16,25.73060011]
[1741703336393,88.07832792,120.28,120.16,36.49062792]
[1741703336598,0.05255139,120.21,120.19,0.06029537]
[1741703337007,0.05951306,120.21,120.19,0.05804634]
[1741703337606,0.05951306,120.21,120.2,8.3217]
[1741703337807,92.41622792,120.28,120.19,0.05804634]
[1741703338009,8.3202,120.23,120.18,8.3225]
[1741703338196,27.97832792,120.26,120.17,28.31]
[1741703339109,8.3207,120.22,120.2,0.05384654]
[1741703339505,0.0606017,120.23,120.2,0.05384654]
[1741703341197,8.3806017,120.23,120.2,0.05384654]
[1741703341398,0.0606017,120.23,120.2,0.05384654]
[1741703342800,0.0606017,120.23,120.22,8.3204]
[1741703343005,27.97832792,120.27,120.21,4.1898]
[1741703343214,27.97832792,120.29,120.2,60.08]
[1741703343407,36.55292792,120.31,120.2,88.05832792]
[1741703343710,8.5746,120.31,120.2,88.05832792]
[1741703343908,8.3167,120.28,120.23,8.3192]
[1741703344108,0.05334786,120.27,120.24,0.06124305]
[1741703346408,27.97832792,120.26,120.18,4.1898]
[1741703346610,88.03832792,120.3,120.17,28.31]
[1741703346611,27.97832792,120.24,120.17,28.31]
[1741703346810,64.375,120.25,120.17,28.31]
[1741703346811,27.97832792,120.22,120.17,28.31]
[1741703347010,27.97832792,120.2,120.17,28.25112829]
[1741703347214,8.3231,120.18,120.17,28.25112829]
[1741703347417,4.2485,120.23,120.17,28.25112829]
[1741703347710,0.05800497,120.19,120.17,28.25112829]
[1741703347903,0.05800497,120.19,120.17,28.31215285]
[1741703348710,8.3231,120.18,120.17,28.31215285]
[1741703348906,0.05800497,120.19,120.17,28.31215285]
[1741703349316,8.3231,120.18,120.17,28.31215285]
[1741703349611,36.30142792,120.18,120.17,1.91555285]
[1741703349817,60.09800497,120.19,120.09,27.97832792]
[1741703350121,27.97832792,120.22,120.1,4.0157]
[1741703350817,8.3259,120.15,120.06,68.3699]
[1741703351010,27.97832792,120.18,120.07,4.0157]
[1741703351212,0.06105135,120.12,120.09,0.05672507]
[1741703351412,88.01832792,120.18,120.07,4.0157]
[1741703351613,0.05305647,120.12,120.09,0.05458266]
[1741703351918,8.3266,120.14,120.07,4.0157]
[1741703352105,0.06166495,120.12,120.09,0.05934467]
[1741703352311,0.06166495,120.12,120.07,4.0157]
[1741703352515,0.06166495,120.12,120.09,0.06003879]
[1741703353014,60.04,120.18,120.09,0.06003879]
[1741703353212,60.04,120.18,120.1,27.97832792]
[1741703353521,60.04,120.18,120.1,8.3281]
[1741703353713,60.04,120.18,120.08,27.97832792]
[1741703353908,4.3873,120.19,120.08,27.97832792]
[1741703354112,0.06272194,120.15,120.12,0.06232685]
[1741703356110,27.97832792,120.14,120.06,11.8899]
[1741703356317,32.08962792,120.14,120.06,7.6372]
[1741703356513,8.3298,120.09,120.06,7.6372]
[1741703356720,60.04,120.12,120.06,3.56]
[1741703357424,0.05987275,120.1,120.08,0.06313993]
[1741703357718,8.3294,120.09,120.08,0.06313993]
[1741703358112,0.05987275,120.1,120.08,0.06313993]
[1741703359013,0.05987275,120.1,120.08,28.04146785]
[1741703359211,26.21894348,120.23,120.08,28.04146785]
[1741703359212,32.30212792,120.17,120.08,0.06313993]
[1741703359612,32.30212792,120.17,120.07,4.2273]
[1741703360011,27.97832792,120.15,120.07,4.2273]
[1741703360414,0.05648911,120.12,120.1,0.05434209]
[1741703360617,8.3255,120.15,120.1,0.05434209]
[1741703360820,0.05900615,120.12,120.1,0.05434209]
[1741703361120,274.64,120.23,120.11,60.04]
[1741703361121,27.97832792,120.22,120.11,60.04]
[1741703361310,40.72242792,120.22,120.11,60.04]
[1741703361917,40.72242792,120.22,120.12,27.97832792]
[1741703362113,0.05398244,120.18,120.15,0.05720323]
[1741703362719,88.05231036,120.18,120.09,60.04]
[1741703362922,27.97832792,120.16,120.07,4.2273]
[1741703363122,8.2614,120.15,120.07,4.2273]
[1741703363318,8.3274,120.12,120.07,4.2273]
[1741703363526,8.2614,120.15,120.07,4.2273]
[1741703364023,0.06180012,120.12,120.1,0.05716151]
[1741703366925,8.38950012,120.12,120.1,0.05716151]
[1741703367221,0.06180012,120.12,120.1,0.05716151]
[1741703367415,8.3285,120.11,120.06,3.56]
[1741703367620,87.97832792,120.1,120.02,1.04184009]
[1741703368125,8.3319,120.06,120.02,1.04184009]
[1741703368425,4.3284,120.09,120.02,1.04184009]
[1741703368620,0.05908713,120.05,120.03,0.06357669]
[1741703369930,60.02,120.14,120.04,27.97832792]
[1741703370128,96.44882792,120.14,120.04,27.97832792]
[1741703370423,8.4505,120.14,120.06,27.97832792]
[1741703370822,8.4505,120.14,120.07,60.0]
[1741703371121,60.0,120.18,120.09,0.05696502]
[1741703371429,7.269e-05,120.12,120.09,274.74]
[1741703371623,8.4233,120.2,120.11,27.97832792]
[1741703371819,8.4233,120.2,120.12,68.5867]
[1741703372425,102.88551171,120.23,120.12,68.5867]
[1741703372631,0.05520934,120.17,120.15,0.05825861]
[1741703372831,0.05520934,120.17,120.15,8.38295861]
[1741703373132,0.05520934,120.17,120.15,0.05825861]
[1741703375428,4.37490934,120.17,120.1,0.09]
[1741703375732,27.97832792,120.16,120.1,0.09]
[1741703375931,27.97832792,120.14,120.1,0.09]
[1741703376332,4.0656,120.16,120.1,0.09]
[1741703376528,0.05882492,120.13,120.11,0.06062235]
[1741703377932,8.38542492,120.13,120.11,0.06062235]
[1741703378131,0.05882492,120.13,120.11,0.06062235]
[1741703378333,0.05882492,120.13,120.1,0.09]
[1741703378832,8.328,120.11,120.1,0.09]
[1741703379328,8.3275,120.12,120.1,0.09]
[1741703379526,0.05882492,120.13,120.1,0.09]
[1741703379924,0.05882492,120.13,120.11,8.3274]
[1741703380133,0.05882492,120.13,120.1,0.09]
[1741703380529,0.05882492,120.13,120.11,8.3276]
[1741703380730,0.05882492,120.13,120.1,0.09]
[1741703380934,8.328,120.11,120.1,0.09]
[1741703381236,0.05882492,120.13,120.1,0.09]
[1741703381434,8.3273,120.12,120.1,0.09]
[1741703381637,0.05882492,120.13,120.1,0.09]
[1741703382639,8.38572492,120.13,120.1,0.09]
[1741703383134,8.3273,120.12,120.1,0.09]
[1741703383640,8.38582492,120.13,120.1,0.09]
[1741703384140,0.05882492,120.13,120.1,0.09]
[1741703384336,8.3273,120.12,120.1,0.09]
[1741703384837,0.05882492,120.13,120.1,0.09]
[1741703385236,8.328,120.11,120.1,0.09]
[1741703385636,0.05882492,120.13,120.09,0.05874951]
[1741703386734,0.05882492,120.13,120.1,8.3283]
[1741703386938,0.05882492,120.13,120.09,0.05874951]
[1741703388038,8.3282,120.11,120.09,0.05874951]
[1741703388237,0.05882492,120.13,120.09,0.05874951]
[1741703388445,0.05882492,120.13,120.1,8.3282]
[1741703388637,0.05882492,120.13,120.09,0.05874951]
[1741703389038,8.3277,120.12,120.09,0.05874951]
[1741703389232,0.05882492,120.13,120.09,0.05874951]
[1741703389744,8.3274,120.12,120.09,0.05874951]
[1741703389941,0.05882492,120.13,120.09,0.05874951]
[1741703390844,8.3283,120.11,120.09,0.05874951]
[1741703391050,0.05882492,120.13,120.09,0.05874951]
[1741703392340,59.95882492,120.13,120.09,0.05874951]
[1741703393147,0.05882492,120.13,120.09,0.05874951]
[1741703393347,8.3283,120.11,120.09,0.05874951]
[1741703393655,0.05882492,120.13,120.09,0.05874951]
[1741703394243,17.31917984,120.13,120.09,0.05874951]
[1741703394443,8.3287,120.1,120.09,0.05874951]
[1741703394654,17.26035492,120.11,120.07,0.11]
[1741703394851,24.77,120.07,119.94,132.59881672]
[1741703395058,235.44503353,120.1,119.94,132.59881672]
[1741703395059,17.26035492,119.98,119.94,132.59881672]
[1741703395256,17.26035492,119.96,119.94,132.59881672]
[1741703395458,17.26035492,119.96,119.93,208.64268829]
[1741703395649,17.26035492,119.94,119.93,69.84876447]
[1741703395855,17.3230616,119.96,119.93,69.84876447]
[1741703396350,0.06270668,119.96,119.93,69.84876447]
[1741703396949,17.26035492,120.05,119.94,17.26035492]
[1741703397151,2.08410416,120.04,119.95,4.1425]
[1741703397455,17.26035492,120.05,119.95,4.1425]
[1741703397655,8.3344,120.02,119.95,4.1425]
[1741703397851,17.26035492,120.05,119.95,4.1425]
[1741703398052,42.88551171,120.0,119.95,4.1425]
[1741703398254,42.94510818,120.0,119.97,0.0577545]
[1741703400256,0.05959647,120.0,119.97,0.0577545]
[1741703400460,28.08535853,119.99,119.97,0.0577545]
[1741703400653,0.05959647,120.0,119.9,28.08535853]
[1741703400859,87.98535853,120.03,119.9,28.08535853]
[1741703401060,28.08535853,120.01,119.9,28.08535853]
[1741703401351,28.08535853,119.99,119.89,12.4602]
[1741703401554,59.9,120.03,119.92,28.08535853]
[1741703401752,59.9,120.03,119.93,59.95251454]
[1741703401949,0.05980156,119.99,119.93,59.9]
[1741703402149,0.05980156,119.99,119.97,0.05823665]
[1741703402354,0.05980156,119.99,119.92,28.08535853]
[1741703402555,0.05980156,119.99,119.97,0.05901087]
[1741703402861,0.05980156,119.99,119.97,0.06407184]
[1741703403161,59.9,120.07,119.97,0.06407184]
[1741703403455,10.82089088,120.08,119.98,28.08535853]
[1741703403658,10.82089088,120.08,119.99,59.9]
[1741703403853,10.82089088,120.08,120.02,28.08535853]
[1741703404056,32.06462083,120.09,120.06,28.08535853]
[1741703404251,1.279e-05,120.1,120.09,8.3294]
[1741703404458,26.49578223,120.16,120.09,28.08535853]
[1741703404754,8.223e-05,120.16,120.12,28.08535853]
[1741703404950,8.223e-05,120.16,120.15,8.3252]
[1741703405155,8.223e-05,120.16,120.15,68.2252]
[1741703405361,41.65825078,120.21,120.15,59.9]
[1741703405362,2.12638,120.21,120.15,59.9]
[1741703405656,0.05509828,120.19,120.17,0.06012518]
[1741703405859,28.08535853,120.18,120.07,525.86]
[1741703406057,28.08535853,120.16,120.07,59.86]
[1741703406453,5.0,120.16,120.07,59.86]
[1741703406657,4.2824,120.19,120.11,28.08535853]
[1741703406854,2.12638,120.21,120.12,59.86]
[1741703407052,2.12638,120.21,120.15,28.08535853]
[1741703407253,7.402e-05,120.16,120.14,0.06265515]
[1741703407461,7.12638,120.21,120.13,59.86]
[1741703407656,28.08535853,120.19,120.09,59.86]
[1741703407857,36.41065853,120.15,120.06,8.3309]
[1741703408155,28.08535853,120.17,120.04,28.08535853]
[1741703408355,0.05965814,120.12,120.09,0.05338923]
[1741703408563,5.814e-05,120.12,120.1,59.86]
[1741703408763,87.92535853,120.19,120.06,87.92535853]
[1741703408965,5.0,120.19,120.09,28.08535853]
[1741703409262,2.12638,120.21,120.15,28.08535853]
[1741703409452,7.12638,120.21,120.15,59.84]
[1741703409655,9.175e-05,120.19,120.17,0.05248468]
[1741703410256,7.175e-05,120.21,120.17,0.05248468]
[1741703410755,7.175e-05,120.21,120.2,8.3217]
[1741703411056,324.09548045,120.36,120.2,87.90535853]
[1741703411261,437.12730726,120.33,120.26,28.08535853]
[1741703411460,5.263e-05,120.28,120.26,87.90535853]
[1741703411862,5.263e-05,120.28,120.27,8.3169]
[1741703412055,406.71475989,120.33,120.26,87.90535853]
[1741703412261,324.09548045,120.36,120.3,28.08535853]
[1741703412463,329.09548045,120.36,120.35,8.3114]
[1741703412664,329.09548045,120.36,120.31,59.8]
[1741703412860,324.09548045,120.36,120.35,8.3114]
[1741703413066,295.68278045,120.36,120.35,8.3114]
[1741703413261,0.05576847,120.37,120.31,59.8]
[1741703413466,0.05576847,120.37,120.34,28.14487328]
[1741703413664,8.0265,120.45,120.34,28.08535853]
[1741703413867,28.08535853,120.42,120.3,28.08535853]
[1741703414061,0.05505282,120.37,120.34,0.05396643]
[1741703414467,28.08535853,120.42,120.33,59.8]
[1741703414663,8.0265,120.45,120.32,28.08535853]
[1741703414664,0.05534241,120.37,120.36,8.3107]
[1741703414971,13.0265,120.45,120.34,28.08535853]
[1741703415174,0.06089497,120.38,120.35,0.05749417]
[1741703415374,13.0265,120.45,120.34,28.08535853]
[1741703415578,0.06151238,120.38,120.37,28.08535853]
[1741703415771,0.06151238,120.38,120.37,87.84535853]
[1741703415977,8.0265,120.45,120.37,87.84535853]
[1741703416282,8.3067,120.42,120.35,28.08535853]
[1741703416472,5.05537293,120.42,120.4,0.05769177]
[1741703416674,0.05537293,120.42,120.32,59.74]
[1741703416874,28.08535853,120.41,120.28,553.50535853]
[1741703417070,4.0409,120.4,120.3,28.08535853]
[1741703417274,28.08535853,120.42,120.35,89.73100989]
[1741703417479,28.08535853,120.4,120.35,89.73100989]
[1741703417977,0.05721926,120.39,120.36,0.05428149]
[1741703418274,0.05721926,120.39,120.35,89.73100989]
[1741703418484,28.08535853,120.36,120.34,134.59651484]
[1741703418680,28.08535853,120.36,120.32,89.55732513]
[1741703418878,87.80535853,120.38,120.32,89.55732513]
[1741703419081,88.18,120.38,120.32,89.55732513]
[1741703419275,29.46,120.38,120.32,89.55732513]
[1741703419484,274.35197478,120.4,120.3,59.72]
[1741703419877,8.3737735,120.36,120.34,0.05676107]
[1741703420183,0.0628735,120.36,120.28,59.7]
[1741703420376,28.08535853,120.33,120.25,134.59651484]
[1741703420882,8.3176,120.26,120.25,134.59651484]
[1741703421080,8.3176,120.26,120.25,72.72632473]
[1741703421384,8.3176,120.26,120.16,72.72632473]
[1741703421385,2.5,120.26,120.16,72.72632473]
[1741703421583,28.08535853,120.25,120.24,3.172e-05]
[1741703421883,0.05695219,120.27,120.24,3.172e-05]
[1741703422276,0.05695219,120.27,120.25,28.08535853]
[1741703422481,6.91,120.32,120.26,59.7]
[1741703422982,37.05,120.32,120.23,4.0683]
[1741703423376,28.08535853,120.31,120.22,8.2464]
[1741703423576,28.08535853,120.29,120.21,336.49128712]
[1741703423878,28.08535853,120.27,120.21,336.49128712]
[1741703424081,28.08535853,120.25,120.21,336.49128712]
[1741703424273,8.3199,120.23,120.21,336.49128712]
[1741703424471,59.68,120.28,120.21,336.49128712]
[1741703424676,28.08535853,120.27,120.18,63.7887]
[1741703424874,28.08535853,120.27,120.16,4.1577]
[1741703425085,0.05266964,120.26,120.23,0.05629011]
[1741703425276,8.3201,120.23,120.17,8.3237]
[1741703425477,28.08535853,120.25,120.23,8.367e-05]
[1741703425673,28.08535853,120.25,120.16,4.1577]
[1741703426273,8.3171,120.27,120.17,28.08535853]
[1741703426480,8.3731,120.3,120.21,28.08535853]
[1741703426679,1.11e-05,120.23,120.21,28.13900836]
[1741703426877,4.3658,120.3,120.19,36.67255853]
[1741703427084,28.08535853,120.29,120.19,8.5872]
[1741703427388,4.3658,120.3,120.19,36.67255853]
[1741703427889,0.05768199,120.26,120.23,0.06196223]
[1741703428884,0.05768199,120.26,120.23,87.82732076]
[1741703429186,0.05768199,120.26,120.23,59.74196223]
[1741703429881,0.05768199,120.26,120.23,68.06116223]
[1741703430081,0.05768199,120.26,120.23,59.74196223]
[1741703430280,0.05768199,120.26,120.23,0.06196223]
[1741703431888,0.05768199,120.26,120.23,28.14732076]
[1741703432089,37.05,120.32,120.25,28.08535853]
[1741703432290,37.05,120.32,120.26,4.1215]
[1741703432693,8.3143,120.31,120.26,4.1215]
[1741703432884,37.05,120.32,120.26,4.1215]
[1741703433086,37.05,120.32,120.3,8.3144]
[1741703433281,37.05,120.32,120.27,28.08535853]
[1741703433587,6.537e-05,120.3,120.29,36.40075853]
[1741703433790,6.537e-05,120.3,120.29,8.3154]
[1741703433990,6.537e-05,120.3,120.28,0.05539125]
[1741703434688,8.3155,120.29,120.28,0.05539125]
[1741703435082,8.3155,120.29,120.28,9.125e-05]
[1741703435395,4.0148,120.29,120.22,12.4049]
[1741703435594,4.0148,120.29,120.22,4.0848]
[1741703435988,4.0148,120.29,120.18,28.08535853]
[1741703436287,0.05845461,120.25,120.18,4.0848]
[1741703436493,28.14381314,120.25,120.22,8.25e-06]
[1741703436793,63.6748,120.29,120.09,689.70752474]
[1741703436794,28.08535853,120.23,120.13,8.3263]
[1741703436999,63.8215,120.22,120.11,4.2042]
[1741703437292,8.3233,120.18,120.13,8.3261]
[1741703437480,67.9095,120.22,120.13,8.3261]
[1741703437686,0.05788155,120.17,120.11,4.2042]
[1741703437884,0.05788155,120.17,120.14,0.05924138]
[1741703438495,8.3264,120.14,120.09,8.3292]
[1741703438887,28.08535853,120.19,120.08,134.32310876]
[1741703439192,219.01563353,120.22,120.08,134.32310876]
[1741703439395,3.68,120.18,120.08,134.32310876]
[1741703439592,8.3281,120.11,120.08,134.32310876]
[1741703439793,8.3281,120.11,120.04,191.0]
[1741703439794,0.05922264,120.16,120.14,8.656e-05]
[1741703440096,8.3329,120.04,120.02,134.32310876]
[1741703440290,334.14,120.09,120.02,134.32310876]
[1741703440589,59.68,120.09,120.02,134.32310876]
[1741703440990,28.08535853,120.06,120.02,134.32310876]
[1741703441291,0.06240306,120.07,120.04,0.06070323]
[1741703441791,8.3321,120.05,120.04,0.06070323]
[1741703441998,0.06240306,120.07,120.04,0.06070323]
[1741703442389,8.3321,120.05,120.04,0.06070323]
[1741703442595,28.08535853,120.06,120.02,134.32310876]
[1741703442796,28.08535853,120.06,119.94,28.08535853]
[1741703443098,32.13565853,120.08,119.96,28.08535853]
[1741703443604,28.08535853,120.06,119.93,195.4155]
[1741703443802,28.14631651,120.03,119.92,28.08535853]
[1741703443990,28.08535853,120.01,119.91,90.91525129]
[1741703444192,28.08535853,119.99,119.91,90.91525129]
[1741703444394,8.3403,119.94,119.91,90.91525129]
[1741703444689,87.80535853,119.93,119.91,3.69855129]
[1741703444896,87.80535853,119.93,119.9,125.12836005]
[1741703445194,59.72,119.93,119.9,125.12836005]
[1741703445595,59.72,119.93,119.84,32.32275853]
[1741703445899,59.72,119.93,119.84,92.04275853]
[1741703446301,0.06108361,119.9,119.84,4.2374]
[1741703446601,0.06108361,119.9,119.83,4.0281]
[1741703447198,28.14644214,119.9,119.8,90.52509573]
[1741703447392,28.08535853,119.88,119.8,90.52509573]
[1741703447694,0.06342773,119.85,119.8,90.52509573]
[1741703449199,0.06342773,119.85,119.81,8.3482]
[1741703449398,0.06342773,119.85,119.81,28.08535853]
[1741703449698,0.06342773,119.85,119.79,28.08535853]
[1741703450096,59.74,119.89,119.77,32.49005853]